[Event "Early-Titled-Tuesday-Blitz-February-27-2024"]
[Site "Chess.com"]
[Date "2024.02.27"]
[Round "6"]
[White "Brave_spirit12"]
[Black "phantom19801127"]
[Result "1-0"]
[WhiteElo "2707"]
[BlackElo "2532"]
[TimeControl "180+1"]
[EndTime "9:04:46 PST"]
[Termination "Brave_spirit12 won by resignation"]

1. e4 {[%clk 0:02:57.8]} 1... c5 {[%clk 0:02:59.5]} 2. c3 {[%clk 0:02:58]} 2...
d5 {[%clk 0:02:58.4]} 3. exd5 {[%clk 0:02:57.6]} 3... Nf6 {[%clk 0:02:58.8]} 4.
d4 {[%clk 0:02:58.5]} 4... cxd4 {[%clk 0:02:57.6]} 5. Qxd4 {[%clk 0:02:50.5]}
5... Qxd5 {[%clk 0:02:55]} 6. Nf3 {[%clk 0:02:46.4]} 6... Nc6 {[%clk 0:02:54.5]}
7. Qxd5 {[%clk 0:02:45.2]} 7... Nxd5 {[%clk 0:02:54.1]} 8. Na3 {[%clk
0:02:45.5]} 8... Bf5 {[%clk 0:02:49.8]} 9. Bb5 {[%clk 0:02:34.4]} 9... Bd7
{[%clk 0:02:46.9]} 10. O-O {[%clk 0:02:32]} 10... e6 {[%clk 0:02:46.7]} 11. Nc2
{[%clk 0:02:26.4]} 11... Be7 {[%clk 0:02:42.9]} 12. Ncd4 {[%clk 0:02:21.1]}
12... Nxd4 {[%clk 0:02:42.1]} 13. Bxd7+ {[%clk 0:02:22]} 13... Kxd7 {[%clk
0:02:41.9]} 14. Nxd4 {[%clk 0:02:22.9]} 14... Rhc8 {[%clk 0:02:40.2]} 15. Rd1
{[%clk 0:02:20.1]} 15... Ke8 {[%clk 0:02:40]} 16. Ne2 {[%clk 0:02:16.5]} 16...
a6 {[%clk 0:02:36.4]} 17. Nf4 {[%clk 0:02:15.7]} 17... Nf6 {[%clk 0:02:36.4]}
18. h3 {[%clk 0:02:13.4]} 18... h6 {[%clk 0:02:35.4]} 19. Be3 {[%clk 0:02:12.7]}
19... b5 {[%clk 0:02:33.6]} 20. Nd3 {[%clk 0:02:08.5]} 20... Nd5 {[%clk
0:02:29.4]} 21. Bd2 {[%clk 0:02:04.8]} 21... f6 {[%clk 0:02:28.3]} 22. a4 {[%clk
0:01:52]} 22... Kf7 {[%clk 0:02:23.7]} 23. axb5 {[%clk 0:01:46.7]} 23... axb5
{[%clk 0:02:23.1]} 24. Nf4 {[%clk 0:01:47.2]} 24... Nxf4 {[%clk 0:02:22.1]} 25.
Bxf4 {[%clk 0:01:44.3]} 25... e5 {[%clk 0:02:22.5]} 26. Be3 {[%clk 0:01:43.3]}
26... Ke6 {[%clk 0:02:22.4]} 27. Kf1 {[%clk 0:01:40.5]} 27... h5 {[%clk
0:02:21.3]} 28. Ke2 {[%clk 0:01:40]} 28... g5 {[%clk 0:02:18.7]} 29. Kd3 {[%clk
0:01:37.2]} 29... h4 {[%clk 0:02:13.5]} 30. Kc2 {[%clk 0:01:35.9]} 30... f5
{[%clk 0:02:13.2]} 31. Re1 {[%clk 0:01:23.8]} 31... Kf7 {[%clk 0:01:50.4]} 32.
Bb6 {[%clk 0:01:19.3]} 32... Bf6 {[%clk 0:01:41.5]} 33. Rxa8 {[%clk 0:01:17.3]}
33... Rxa8 {[%clk 0:01:40.3]} 34. Rd1 {[%clk 0:01:17.5]} 34... Ke6 {[%clk
0:01:38.9]} 35. Bc5 {[%clk 0:01:13.7]} 35... Rd8 {[%clk 0:01:35.7]} 36. Rxd8
{[%clk 0:01:13.1]} 36... Bxd8 {[%clk 0:01:34.2]} 37. Kb3 {[%clk 0:01:13.5]}
37... Ba5 {[%clk 0:01:29.4]} 38. c4 {[%clk 0:01:04.3]} 38... bxc4+ {[%clk
0:01:22.5]} 39. Kxc4 {[%clk 0:01:05.2]} 39... g4 {[%clk 0:01:19]} 40. b4 {[%clk
0:01:03.6]} 40... Bc7 {[%clk 0:01:18.5]} 41. b5 {[%clk 0:01:03.2]} 41... e4
{[%clk 0:01:18]} 42. b6 {[%clk 0:01:02.3]} 42... Bb8 {[%clk 0:01:18]} 43. b7
{[%clk 0:01:00.2]} 43... f4 {[%clk 0:01:17.2]} 44. f3 {[%clk 0:00:31.6]} 44...
gxh3 {[%clk 0:01:06.9]} 45. gxh3 {[%clk 0:00:30.3]} 45... exf3 {[%clk 0:01:07]}
46. Bf2 {[%clk 0:00:27.4]} 46... Ke5 {[%clk 0:01:03.1]} 47. Bxh4 {[%clk
0:00:26.9]} 47... Ke4 {[%clk 0:01:03.2]} 48. Bf2 {[%clk 0:00:27.4]} 48... Be5
{[%clk 0:00:54.6]} 49. h4 {[%clk 0:00:25.9]} 49... Kf5 {[%clk 0:00:54.2]} 50.
Kd5 {[%clk 0:00:25.3]} 50... Bb8 {[%clk 0:00:51.3]} 51. Kc6 {[%clk 0:00:19.8]}
1-0

[Event "Early-Titled-Tuesday-Blitz-February-27-2024"]
[Site "Chess.com"]
[Date "2024.02.27"]
[Round "6"]
[White "Rawnsdale"]
[Black "GMJustin"]
[Result "1-0"]
[WhiteElo "2527"]
[BlackElo "2341"]
[TimeControl "180+1"]
[EndTime "9:04:48 PST"]
[Termination "Rawnsdale won on time"]

1. e4 {[%clk 0:03:00.9]} 1... e5 {[%clk 0:02:40.1]} 2. Nf3 {[%clk 0:02:59.1]}
2... Nc6 {[%clk 0:02:40]} 3. Bb5 {[%clk 0:02:43.3]} 3... a6 {[%clk 0:02:38.5]}
4. Ba4 {[%clk 0:02:42.9]} 4... Nf6 {[%clk 0:02:37.3]} 5. O-O {[%clk 0:02:40.6]}
5... Be7 {[%clk 0:02:36.3]} 6. Re1 {[%clk 0:02:39.9]} 6... b5 {[%clk 0:02:35.8]}
7. Bb3 {[%clk 0:02:40]} 7... d6 {[%clk 0:02:35.9]} 8. h3 {[%clk 0:02:39.7]} 8...
Na5 {[%clk 0:02:30]} 9. c3 {[%clk 0:02:38.9]} 9... Nxb3 {[%clk 0:02:27.6]} 10.
axb3 {[%clk 0:02:39.3]} 10... Bb7 {[%clk 0:02:23.8]} 11. d3 {[%clk 0:02:39.2]}
11... O-O {[%clk 0:02:23.1]} 12. Nbd2 {[%clk 0:02:39.3]} 12... Nd7 {[%clk
0:02:19.2]} 13. Nf1 {[%clk 0:02:38.9]} 13... f5 {[%clk 0:02:16.7]} 14. Ng3
{[%clk 0:02:34.3]} 14... f4 {[%clk 0:02:10.1]} 15. Nf1 {[%clk 0:02:33.8]} 15...
g5 {[%clk 0:01:57.3]} 16. d4 {[%clk 0:02:31.2]} 16... Bf6 {[%clk 0:01:48]} 17.
N3h2 {[%clk 0:02:21.1]} 17... Qe8 {[%clk 0:01:40.5]} 18. g4 {[%clk 0:02:11.1]}
18... Kg7 {[%clk 0:01:12.8]} 19. Nf3 {[%clk 0:02:07]} 19... h5 {[%clk
0:01:08.1]} 20. N1h2 {[%clk 0:02:02.2]} 20... Rh8 {[%clk 0:01:07.4]} 21. b4
{[%clk 0:01:46.6]} 21... Rd8 {[%clk 0:01:03.1]} 22. Kg2 {[%clk 0:01:34.4]} 22...
exd4 {[%clk 0:00:50.3]} 23. Qc2 {[%clk 0:01:23.4]} 23... dxc3 {[%clk 0:00:31.4]}
24. bxc3 {[%clk 0:01:21.1]} 24... Qg6 {[%clk 0:00:31]} 25. Bb2 {[%clk
0:01:15.7]} 25... Rde8 {[%clk 0:00:29.7]} 26. c4 {[%clk 0:00:57.7]} 26... Bxe4
{[%clk 0:00:20.1]} 27. Bxf6+ {[%clk 0:00:55.2]} 27... Nxf6 {[%clk 0:00:19.2]}
28. Qc3 {[%clk 0:00:55.4]} 28... hxg4 {[%clk 0:00:18.1]} 29. Nxg4 {[%clk
0:00:46.8]} 29... Bxf3+ {[%clk 0:00:11.7]} 30. Qxf3 {[%clk 0:00:44.7]} 30...
Nxg4 {[%clk 0:00:09.9]} 31. Qxg4 {[%clk 0:00:44.8]} 31... Rxe1 {[%clk 0:00:04]}
32. Rxe1 {[%clk 0:00:45.7]} 32... Rf8 {[%clk 0:00:03.4]} 33. cxb5 {[%clk
0:00:43.8]} 33... axb5 {[%clk 0:00:02.7]} 34. Re6 {[%clk 0:00:43.2]} 34... Qf5
{[%clk 0:00:02]} 35. Re7+ {[%clk 0:00:40.3]} 35... Kf6 {[%clk 0:00:02.2]} 36.
Rxc7 {[%clk 0:00:37.3]} 36... Qxg4+ {[%clk 0:00:01.7]} 37. hxg4 {[%clk
0:00:38.2]} 37... Re8 {[%clk 0:00:01.6]} 38. Rb7 {[%clk 0:00:35.2]} 38... Re5
{[%clk 0:00:01.6]} 39. Kf3 {[%clk 0:00:35.5]} 39... Rd5 {[%clk 0:00:01.7]} 40.
Ke4 {[%clk 0:00:35.2]} 40... Ke6 {[%clk 0:00:01.5]} 41. f3 {[%clk 0:00:29.8]}
41... Re5+ {[%clk 0:00:01.7]} 42. Kd4 {[%clk 0:00:29.9]} 42... Re3 {[%clk
0:00:01.9]} 43. Rxb5 {[%clk 0:00:29.5]} 43... Rxf3 {[%clk 0:00:02.1]} 44. Rxg5
{[%clk 0:00:29.9]} 44... Rf1 {[%clk 0:00:02.1]} 45. b5 {[%clk 0:00:29.5]} 45...
f3 {[%clk 0:00:01.9]} 46. Ke3 {[%clk 0:00:28.5]} 46... Rb1 {[%clk 0:00:01]} 47.
Kxf3 {[%clk 0:00:28.3]} 1-0

[Event "Early-Titled-Tuesday-Blitz-February-27-2024"]
[Site "Chess.com"]
[Date "2024.02.27"]
[Round "6"]
[White "jcibarra"]
[Black "krzyzan94"]
[Result "1-0"]
[WhiteElo "2952"]
[BlackElo "2791"]
[TimeControl "180+1"]
[EndTime "9:04:52 PST"]
[Termination "jcibarra won on time"]

1. e4 {[%clk 0:03:00.9]} 1... c6 {[%clk 0:02:58.8]} 2. Nf3 {[%clk 0:03:01.1]}
2... d5 {[%clk 0:02:59]} 3. d3 {[%clk 0:03:01.9]} 3... g6 {[%clk 0:02:58.2]} 4.
Qe2 {[%clk 0:03:02]} 4... Bg7 {[%clk 0:02:57.2]} 5. g3 {[%clk 0:03:02.6]} 5...
Bg4 {[%clk 0:02:49.9]} 6. Nbd2 {[%clk 0:03:01.3]} 6... Nd7 {[%clk 0:02:46.7]} 7.
h3 {[%clk 0:03:01.5]} 7... Bxf3 {[%clk 0:02:46.3]} 8. Nxf3 {[%clk 0:03:02.4]}
8... e6 {[%clk 0:02:38.5]} 9. Bg2 {[%clk 0:03:02.1]} 9... Ne7 {[%clk 0:02:38.6]}
10. O-O {[%clk 0:02:57.2]} 10... O-O {[%clk 0:02:37.7]} 11. e5 {[%clk
0:02:57.9]} 11... c5 {[%clk 0:02:34.4]} 12. c4 {[%clk 0:02:54]} 12... h6 {[%clk
0:02:26.6]} 13. h4 {[%clk 0:02:53.9]} 13... Nc6 {[%clk 0:02:19.4]} 14. Bf4
{[%clk 0:02:50.3]} 14... Qe7 {[%clk 0:02:15]} 15. Rfe1 {[%clk 0:02:46.7]} 15...
Rae8 {[%clk 0:02:07.7]} 16. a3 {[%clk 0:02:44.5]} 16... Kh7 {[%clk 0:02:03.5]}
17. Rac1 {[%clk 0:02:43.8]} 17... d4 {[%clk 0:01:58.7]} 18. b4 {[%clk
0:02:30.3]} 18... a6 {[%clk 0:01:33.2]} 19. Rb1 {[%clk 0:02:24.3]} 19... Ra8
{[%clk 0:01:28.1]} 20. b5 {[%clk 0:02:19.7]} 20... axb5 {[%clk 0:01:27.8]} 21.
cxb5 {[%clk 0:02:20.6]} 21... Nd8 {[%clk 0:01:21.9]} 22. Nd2 {[%clk 0:02:11.7]}
22... Nb6 {[%clk 0:01:19.8]} 23. Rb3 {[%clk 0:02:00.4]} 23... c4 {[%clk
0:01:05.1]} 24. Nxc4 {[%clk 0:01:49.3]} 24... Nxc4 {[%clk 0:01:05.1]} 25. dxc4
{[%clk 0:01:50.1]} 25... Rxa3 {[%clk 0:01:05.7]} 26. Rxa3 {[%clk 0:01:42.3]}
26... Qxa3 {[%clk 0:01:06.6]} 27. Rd1 {[%clk 0:01:42.8]} 27... Qc5 {[%clk
0:01:01.6]} 28. Bf1 {[%clk 0:01:35.4]} 28... f6 {[%clk 0:00:57.9]} 29. exf6
{[%clk 0:01:33.1]} 29... Bxf6 {[%clk 0:00:58.8]} 30. Qe4 {[%clk 0:01:32.2]}
30... Qf5 {[%clk 0:00:50.8]} 31. Bd3 {[%clk 0:01:29.5]} 31... Qxe4 {[%clk
0:00:46.6]} 32. Bxe4 {[%clk 0:01:30.4]} 32... e5 {[%clk 0:00:42.6]} 33. Bd2
{[%clk 0:01:29.1]} 33... Rf7 {[%clk 0:00:39.4]} 34. c5 {[%clk 0:01:26.6]} 34...
Ne6 {[%clk 0:00:37.1]} 35. h5 {[%clk 0:01:22.8]} 35... Nxc5 {[%clk 0:00:27.5]}
36. Bxg6+ {[%clk 0:01:16.4]} 36... Kg7 {[%clk 0:00:27.5]} 37. Bxf7 {[%clk
0:01:16.2]} 37... Kxf7 {[%clk 0:00:28.4]} 38. Bxh6 {[%clk 0:01:14.1]} 38... e4
{[%clk 0:00:29]} 39. g4 {[%clk 0:01:07.7]} 39... Ne6 {[%clk 0:00:21.5]} 40. g5
{[%clk 0:01:07.1]} 40... Bxg5 {[%clk 0:00:22]} 41. Bxg5 {[%clk 0:01:02.5]} 41...
Nxg5 {[%clk 0:00:22.9]} 42. Rc1 {[%clk 0:01:02.2]} 42... d3 {[%clk 0:00:18.1]}
43. Kf1 {[%clk 0:01:00.7]} 43... Ne6 {[%clk 0:00:16.2]} 44. Rc4 {[%clk
0:00:57.9]} 44... Ng5 {[%clk 0:00:11.3]} 45. Rc7+ {[%clk 0:00:43.2]} 45... Ke6
{[%clk 0:00:11.7]} 46. h6 {[%clk 0:00:40.6]} 46... Kd5 {[%clk 0:00:02.3]} 47. h7
{[%clk 0:00:38.8]} 47... Nxh7 {[%clk 0:00:01.9]} 48. Rxh7 {[%clk 0:00:38.3]}
48... b6 {[%clk 0:00:01.9]} 49. Ke1 {[%clk 0:00:36.8]} 49... Kc5 {[%clk
0:00:01.3]} 50. Rh5+ {[%clk 0:00:36.3]} 50... Kd4 {[%clk 0:00:01.2]} 51. Kd2
{[%clk 0:00:36.4]} 1-0

[Event "Early-Titled-Tuesday-Blitz-February-27-2024"]
[Site "Chess.com"]
[Date "2024.02.27"]
[Round "6"]
[White "N4700000"]
[Black "HanSchut"]
[Result "1-0"]
[WhiteElo "2454"]
[BlackElo "2297"]
[TimeControl "180+1"]
[EndTime "9:04:52 PST"]
[Termination "N4700000 won by checkmate"]

1. e4 {[%clk 0:03:00.9]} 1... c5 {[%clk 0:02:58.5]} 2. a3 {[%clk 0:03:00.3]}
2... g6 {[%clk 0:02:57.7]} 3. h4 {[%clk 0:02:54.6]} 3... Bg7 {[%clk 0:02:53.7]}
4. h5 {[%clk 0:02:53.6]} 4... Nc6 {[%clk 0:02:53.7]} 5. Nc3 {[%clk 0:02:51.7]}
5... e6 {[%clk 0:02:49.7]} 6. Bc4 {[%clk 0:02:45.8]} 6... Nge7 {[%clk
0:02:49.4]} 7. d3 {[%clk 0:02:44.6]} 7... d5 {[%clk 0:02:49.3]} 8. Ba2 {[%clk
0:02:41.8]} 8... b5 {[%clk 0:02:21.7]} 9. Bd2 {[%clk 0:02:12.3]} 9... dxe4
{[%clk 0:02:00]} 10. Nxe4 {[%clk 0:02:09.5]} 10... Bxb2 {[%clk 0:01:27.9]} 11.
Rb1 {[%clk 0:02:08.4]} 11... Bd4 {[%clk 0:01:24.8]} 12. Nf3 {[%clk 0:01:56.8]}
12... f5 {[%clk 0:00:58.4]} 13. Nxd4 {[%clk 0:01:51.4]} 13... fxe4 {[%clk
0:00:54.6]} 14. Nxb5 {[%clk 0:01:43.4]} 14... exd3 {[%clk 0:00:46.5]} 15. hxg6
{[%clk 0:01:28.8]} 15... Nxg6 {[%clk 0:00:46.1]} 16. Bc3 {[%clk 0:01:12.5]}
16... Nd4 {[%clk 0:00:21.1]} 17. Qxd3 {[%clk 0:00:54.1]} 17... O-O {[%clk
0:00:19.7]} 18. Nxd4 {[%clk 0:00:48.3]} 18... cxd4 {[%clk 0:00:16.2]} 19. Bxd4
{[%clk 0:00:45.6]} 19... Qg5 {[%clk 0:00:14.9]} 20. Qe4 {[%clk 0:00:19]} 20...
Qf5 {[%clk 0:00:14.8]} 21. Qxa8 {[%clk 0:00:15.6]} 21... Qxc2 {[%clk 0:00:14.6]}
22. O-O {[%clk 0:00:10]} 22... Qf5 {[%clk 0:00:12.5]} 23. Qf3 {[%clk 0:00:09.3]}
23... Qg5 {[%clk 0:00:12.3]} 24. Qg3 {[%clk 0:00:09.2]} 24... Qf5 {[%clk
0:00:12.2]} 25. Rb8 {[%clk 0:00:07.9]} 25... Bb7 {[%clk 0:00:10.8]} 26. Rxf8+
{[%clk 0:00:07.1]} 26... Kxf8 {[%clk 0:00:11.7]} 27. Re1 {[%clk 0:00:07.3]}
27... e5 {[%clk 0:00:09.4]} 28. Bc5+ {[%clk 0:00:06.9]} 28... Kg7 {[%clk
0:00:09.2]} 29. Qh3 {[%clk 0:00:03.9]} 29... Qf6 {[%clk 0:00:08.7]} 30. Qd7+
{[%clk 0:00:03.8]} 30... Kh6 {[%clk 0:00:08.7]} 31. Qxb7 {[%clk 0:00:04.4]}
31... Nf4 {[%clk 0:00:08.2]} 32. Be3 {[%clk 0:00:04.9]} 32... Qg5 {[%clk
0:00:06.2]} 33. Bxf4 {[%clk 0:00:05.3]} 33... exf4 {[%clk 0:00:06.6]} 34. Qf3
{[%clk 0:00:05.5]} 34... Kg6 {[%clk 0:00:06.5]} 35. Re6+ {[%clk 0:00:05.5]}
35... Kf7 {[%clk 0:00:06.9]} 36. Qb7+ {[%clk 0:00:05.9]} 36... Kf8 {[%clk
0:00:06]} 37. Qc8+ {[%clk 0:00:05.3]} 37... Kf7 {[%clk 0:00:05.2]} 38. Qd7+
{[%clk 0:00:05.9]} 38... Kf8 {[%clk 0:00:05]} 39. Re8# {[%clk 0:00:06.4]} 1-0

[Event "Early-Titled-Tuesday-Blitz-February-27-2024"]
[Site "Chess.com"]
[Date "2024.02.27"]
[Round "6"]
[White "TheAlienParty"]
[Black "DonCiao"]
[Result "1-0"]
[WhiteElo "2400"]
[BlackElo "2093"]
[TimeControl "180+1"]
[EndTime "9:04:55 PST"]
[Termination "TheAlienParty won on time"]

1. c4 {[%clk 0:02:59.6]} 1... Nf6 {[%clk 0:02:57.4]} 2. Nc3 {[%clk 0:02:58.7]}
2... d5 {[%clk 0:02:56.3]} 3. cxd5 {[%clk 0:02:58.2]} 3... Nxd5 {[%clk
0:02:56.9]} 4. g3 {[%clk 0:02:58.2]} 4... g6 {[%clk 0:02:56.3]} 5. Bg2 {[%clk
0:02:58]} 5... Nb6 {[%clk 0:02:56]} 6. d4 {[%clk 0:02:57.6]} 6... Bg7 {[%clk
0:02:55.8]} 7. Nf3 {[%clk 0:02:56]} 7... Nc6 {[%clk 0:02:55.8]} 8. e3 {[%clk
0:02:54.5]} 8... O-O {[%clk 0:02:54.2]} 9. O-O {[%clk 0:02:54.3]} 9... Re8
{[%clk 0:02:54.3]} 10. b3 {[%clk 0:02:54]} 10... a5 {[%clk 0:02:49.8]} 11. Bb2
{[%clk 0:02:52]} 11... a4 {[%clk 0:02:49.5]} 12. Rc1 {[%clk 0:02:51.6]} 12... a3
{[%clk 0:02:44.7]} 13. Ba1 {[%clk 0:02:50.5]} 13... Nb4 {[%clk 0:02:44.4]} 14.
Qe2 {[%clk 0:02:45.3]} 14... c6 {[%clk 0:02:27.8]} 15. Rfd1 {[%clk 0:02:39.3]}
15... N6d5 {[%clk 0:02:10.7]} 16. Ne4 {[%clk 0:02:26]} 16... Bf5 {[%clk
0:02:00.9]} 17. Nc5 {[%clk 0:02:10]} 17... Bc8 {[%clk 0:01:49.7]} 18. e4 {[%clk
0:02:05.8]} 18... Nc7 {[%clk 0:01:45.8]} 19. d5 {[%clk 0:01:59.4]} 19... cxd5
{[%clk 0:01:43.9]} 20. exd5 {[%clk 0:01:58.4]} 20... Bxa1 {[%clk 0:01:42]} 21.
Rxa1 {[%clk 0:01:51.3]} 21... Ncxd5 {[%clk 0:01:41.8]} 22. Ne5 {[%clk
0:01:36.4]} 22... e6 {[%clk 0:01:39.3]} 23. Rac1 {[%clk 0:01:26.6]} 23... b6
{[%clk 0:01:25.3]} 24. Ne4 {[%clk 0:01:23]} 24... Bb7 {[%clk 0:01:24.4]} 25. Ng4
{[%clk 0:01:20.3]} 25... Qe7 {[%clk 0:01:17.6]} 26. Qd2 {[%clk 0:01:18.2]} 26...
f5 {[%clk 0:01:13.4]} 27. Nh6+ {[%clk 0:01:13]} 27... Kg7 {[%clk 0:01:13.1]} 28.
Ng5 {[%clk 0:01:08.2]} 28... Rad8 {[%clk 0:01:03.9]} 29. Re1 {[%clk 0:01:06.6]}
29... Nd3 {[%clk 0:00:57.8]} 30. Nxe6+ {[%clk 0:01:03.3]} 30... Qxe6 {[%clk
0:00:51]} 31. Rxe6 {[%clk 0:01:01.6]} 31... Rxe6 {[%clk 0:00:51.6]} 32. Qxd3
{[%clk 0:01:01.2]} 32... Kxh6 {[%clk 0:00:51.4]} 33. b4 {[%clk 0:00:47.1]} 33...
Red6 {[%clk 0:00:47.6]} 34. Qxa3 {[%clk 0:00:46.6]} 34... Nxb4 {[%clk
0:00:28.6]} 35. Bxb7 {[%clk 0:00:42.6]} 35... Nd3 {[%clk 0:00:23.4]} 36. Rd1
{[%clk 0:00:39.3]} 36... Rd4 {[%clk 0:00:13.8]} 37. Ba6 {[%clk 0:00:36.2]} 37...
b5 {[%clk 0:00:13]} 38. Bxb5 {[%clk 0:00:35.1]} 38... Nf4 {[%clk 0:00:09.9]} 39.
Rxd4 {[%clk 0:00:31.4]} 39... Ne2+ {[%clk 0:00:09]} 40. Bxe2 {[%clk 0:00:30.4]}
40... Rxd4 {[%clk 0:00:07.1]} 41. Qe3+ {[%clk 0:00:29.7]} 41... f4 {[%clk
0:00:03.5]} 42. Qxd4 {[%clk 0:00:29.3]} 42... f3 {[%clk 0:00:03.3]} 43. Qh4+
{[%clk 0:00:28.5]} 43... Kg7 {[%clk 0:00:02.8]} 44. Bxf3 {[%clk 0:00:28.3]}
44... h5 {[%clk 0:00:01.8]} 45. Qe7+ {[%clk 0:00:28]} 45... Kh6 {[%clk
0:00:01.2]} 46. Be4 {[%clk 0:00:26.8]} 1-0

[Event "Early-Titled-Tuesday-Blitz-February-27-2024"]
[Site "Chess.com"]
[Date "2024.02.27"]
[Round "6"]
[White "Alexei_Gubajdullin"]
[Black "Slovineanu"]
[Result "1/2-1/2"]
[WhiteElo "2641"]
[BlackElo "2476"]
[TimeControl "180+1"]
[EndTime "9:04:57 PST"]
[Termination "Game drawn by repetition"]

1. d4 {[%clk 0:03:00.8]} 1... Nf6 {[%clk 0:02:58.1]} 2. Nf3 {[%clk 0:02:56.9]}
2... e6 {[%clk 0:02:57.8]} 3. Bf4 {[%clk 0:02:56]} 3... d5 {[%clk 0:02:57.6]} 4.
e3 {[%clk 0:02:56]} 4... c5 {[%clk 0:02:57.8]} 5. Nbd2 {[%clk 0:02:56]} 5... Bd6
{[%clk 0:02:57.6]} 6. Ne5 {[%clk 0:02:54.9]} 6... Qc7 {[%clk 0:02:53.2]} 7. Bb5+
{[%clk 0:02:52.7]} 7... Nbd7 {[%clk 0:02:51.8]} 8. Nxd7 {[%clk 0:02:48.9]} 8...
Bxd7 {[%clk 0:02:51.4]} 9. Bxd6 {[%clk 0:02:48.4]} 9... Qxd6 {[%clk 0:02:50.7]}
10. Bxd7+ {[%clk 0:02:43.4]} 10... Nxd7 {[%clk 0:02:50.3]} 11. O-O {[%clk
0:02:41.2]} 11... O-O {[%clk 0:02:49.6]} 12. c3 {[%clk 0:02:30.3]} 12... e5
{[%clk 0:02:49.2]} 13. dxe5 {[%clk 0:02:29.7]} 13... Nxe5 {[%clk 0:02:49.2]} 14.
Nf3 {[%clk 0:02:29.8]} 14... Rad8 {[%clk 0:02:47]} 15. Nxe5 {[%clk 0:02:28.4]}
15... Qxe5 {[%clk 0:02:47]} 16. Qf3 {[%clk 0:02:28.5]} 16... Rd6 {[%clk
0:02:44.5]} 17. Rfd1 {[%clk 0:02:28.1]} 17... Rfd8 {[%clk 0:02:43.8]} 18. Rd2
{[%clk 0:02:28.2]} 18... b6 {[%clk 0:02:39.9]} 19. Rad1 {[%clk 0:02:27.7]} 19...
g6 {[%clk 0:02:40.1]} 20. h4 {[%clk 0:02:26.7]} 20... h5 {[%clk 0:02:39.5]} 21.
g3 {[%clk 0:02:26.8]} 21... Kg7 {[%clk 0:02:37.8]} 22. Qf4 {[%clk 0:02:24.4]}
22... Qxf4 {[%clk 0:02:33]} 23. gxf4 {[%clk 0:02:24.1]} 23... Kf6 {[%clk
0:02:21.4]} 24. Kg2 {[%clk 0:01:53.9]} 24... Ke6 {[%clk 0:02:20.5]} 25. Kf3
{[%clk 0:01:53.9]} 25... b5 {[%clk 0:02:15.3]} 26. b4 {[%clk 0:01:50.8]} 26...
Rc8 {[%clk 0:02:08.3]} 27. a3 {[%clk 0:01:47.3]} 27... cxb4 {[%clk 0:02:01.3]}
28. cxb4 {[%clk 0:01:47.1]} 28... Rc4 {[%clk 0:01:58.7]} 29. Rd3 {[%clk
0:01:46.3]} 29... Rc2 {[%clk 0:01:44.4]} 30. Kg3 {[%clk 0:01:41.5]} 30... Rc4
{[%clk 0:01:32.7]} 31. f3 {[%clk 0:01:40.9]} 31... f5 {[%clk 0:01:31.8]} 32.
R1d2 {[%clk 0:01:40.7]} 32... Rc1 {[%clk 0:01:30.3]} 33. e4 {[%clk 0:01:37]}
33... fxe4 {[%clk 0:01:22]} 34. fxe4 {[%clk 0:01:36.8]} 34... d4 {[%clk
0:01:20.8]} 35. e5 {[%clk 0:01:24.5]} 35... Rd5 {[%clk 0:01:17.4]} 36. Rxd4
{[%clk 0:01:24.4]} 36... Rc3+ {[%clk 0:01:17.3]} 37. Kf2 {[%clk 0:01:22.9]}
37... Rxd4 {[%clk 0:01:17.6]} 38. Rxd4 {[%clk 0:01:22.9]} 38... Kf5 {[%clk
0:01:01.2]} 39. Rd5 {[%clk 0:01:14.6]} 39... Kxf4 {[%clk 0:00:57.4]} 40. Rxb5
{[%clk 0:01:12]} 40... Rxa3 {[%clk 0:00:56.7]} 41. e6 {[%clk 0:01:09.8]} 41...
Rf3+ {[%clk 0:00:56.4]} 42. Kg2 {[%clk 0:01:09.5]} 42... Re3 {[%clk 0:00:56.5]}
43. Ra5 {[%clk 0:01:08.4]} 43... Rxe6 {[%clk 0:00:53.6]} 44. Rxa7 {[%clk
0:00:59.5]} 44... Kg4 {[%clk 0:00:50.3]} 45. b5 {[%clk 0:00:59.6]} 45... Kxh4
{[%clk 0:00:47.5]} 46. Ra6 {[%clk 0:00:59.5]} 46... Re2+ {[%clk 0:00:43.4]} 47.
Kf1 {[%clk 0:00:54.8]} 47... Rb2 {[%clk 0:00:41.8]} 48. Rxg6 {[%clk 0:00:53.8]}
48... Rxb5 {[%clk 0:00:40.8]} 49. Ra6 {[%clk 0:00:48.3]} 49... Rb3 {[%clk
0:00:32.9]} 50. Kg2 {[%clk 0:00:44.6]} 50... Rg3+ {[%clk 0:00:31.4]} 51. Kh1
{[%clk 0:00:44.4]} 51... Kh3 {[%clk 0:00:29.5]} 52. Ra1 {[%clk 0:00:43.1]} 52...
h4 {[%clk 0:00:29.7]} 53. Rc1 {[%clk 0:00:42.8]} 53... Re3 {[%clk 0:00:29.8]}
54. Rd1 {[%clk 0:00:42.8]} 54... Kg3 {[%clk 0:00:29.8]} 55. Rc1 {[%clk 0:00:43]}
55... h3 {[%clk 0:00:29.9]} 56. Rd1 {[%clk 0:00:43.1]} 56... Rf3 {[%clk
0:00:30]} 57. Rc1 {[%clk 0:00:43.1]} 57... Rf2 {[%clk 0:00:30.5]} 58. Rd1 {[%clk
0:00:42.9]} 58... Rh2+ {[%clk 0:00:30]} 59. Kg1 {[%clk 0:00:43]} 59... Rg2+
{[%clk 0:00:27.4]} 60. Kh1 {[%clk 0:00:43.1]} 60... Rh2+ {[%clk 0:00:27.7]} 61.
Kg1 {[%clk 0:00:43.1]} 61... Rg2+ {[%clk 0:00:28.2]} 62. Kh1 {[%clk 0:00:43.4]}
62... Rh2+ {[%clk 0:00:28.7]} 1/2-1/2